[Event "95th Caplin Hastings Congress"]
[Site "Hastings"]
[Date "2019.12.31"]
[Round "4.36"]
[White "Eames, Robert S"]
[Black "Brouwer, Willem"]
[Result "1-0"]
[ECO "C42"]
[WhiteElo "2150"]
[BlackElo "1662"]
[Annotator "ChessBase"]
[PlyCount "59"]
[EventDate "2019.12.28"]
[EventType "swiss"]
[EventCountry "ENG"]
[SourceTitle "playchess.com"]
[Source "ChessBase"]
[SourceQuality "1"]
[TimeControl "40/6600+30:3000+30"]

1. e4 {[%emt 0:09:43]} e5 {[%emt 0:09:50]} 2. Nf3 {[%emt 0:00:13]} Nf6 {[%emt 0:00:20]} 3. Nxe5 {[%emt 0:00:21]} d6 {[%emt 0:00:15]} 4. Nf3 {[%emt 0:00:13]} Nxe4 {[%emt 0:00:12]} 5. d4 {[%emt 0:00:16]} d5 {[%emt 0:00:29]} 6. Bd3 {[%emt 0:00:10]} Nf6 {[%emt 0:02:14]} 7. O-O {[%emt 0:01:48]} Be7 {[%emt 0:00:18]} 8. h3 {[%emt 0:00:29]} O-O {[%emt 0:00:24]} 9. c4 {[%emt 0:01:42]} h6 {[%emt 0:01:15]} 10. Nc3 {[%emt 0:00:18]} Be6 {[%emt 0:00:30]} 11. c5 {[%emt 0:01:47]} c6 {[%emt 0:00:19]} 12. Bf4 {[%emt 0:00:43]} Nbd7 {[%emt 0:00:44]} 13. b4 {[%emt 0:00:59]} a6 {[%emt 0:02:30]} 14. Re1 {[%emt 0:01:06]} Nh7 {[%emt 0:06:00]} 15. Bc2 {[%emt 0:03:43]} Re8 {[%emt 0:13:02]} 16. Qd3 {[%emt 0:01:46]} Ndf8 {[%emt 0:02:19]} 17. Ne5 {[%emt 0:02:21]} Bf6 {[%emt 0:01:16]} 18. Na4 {[%emt 0:06:17]} Bxe5 {[%emt 0:13:26]} 19. Bxe5 {[%emt 0:00:43]} Ng6 {[%emt 0:09:11]} 20. Nb6 {[%emt 0:01:56]} Ra7 {[%emt 0:02:57]} 21. f4 {[%emt 0:05:21]} Nhf8 {[%emt 0:00:30]} 22. Bd6 {[%emt 0:02:54]} Ne7 {[%emt 0:01:02]} 23. g4 {[%emt 0:01:22]} g6 {[%emt 0:01:11]} 24. Qg3 {[%emt 0:09:58]} Nc8 {[%emt 0:11:53]} 25. Nxc8 {[%emt 0:02:03]} Bxc8 {[%emt 0:03:00]} 26. Rxe8 {[%emt 0:00:18]} Qxe8 {[%emt 0:00:48]} 27. Re1 {[%emt 0:00:31]} Qd8 {[%emt 0:02:00]} 28. Re7 {[%emt 0:04:04]} Ra8 {[%emt 0:01:56]} 29. f5 {[%emt 0:01:29]} g5 {[%emt 0:00:44]} 30. Qe5 {[%emt 0:06:37]} 1-0

[Event "95th Caplin Hastings Congress"]
[Site "Hastings"]
[Date "2019.12.31"]
[Round "4.38"]
[White "De Boer, Bas"]
[Black "Zheng, Jerry Z"]
[Result "1-0"]
[ECO "E05"]
[WhiteElo "2138"]
[BlackElo "1565"]
[Annotator "ChessBase"]
[PlyCount "59"]
[EventDate "2019.12.28"]
[EventType "swiss"]
[EventCountry "ENG"]
[SourceTitle "playchess.com"]
[Source "ChessBase"]
[SourceQuality "1"]
[TimeControl "40/6600+30:3000+30"]

1. d4 {[%emt 0:09:34]} Nf6 {[%emt 0:09:40]} 2. c4 {[%emt 0:00:04]} e6 {[%emt 0:00:11]} 3. g3 {[%emt 0:00:06]} d5 {[%emt 0:00:13]} 4. Nf3 {[%emt 0:00:11]} Be7 {[%emt 0:00:24]} 5. Bg2 {[%emt 0:00:07]} O-O {[%emt 0:00:21]} 6. O-O {[%emt 0:00:05]} dxc4 {[%emt 0:00:07]} 7. Qc2 {[%emt 0:00:06]} a6 {[%emt 0:00:12]} 8. a4 {[%emt 0:00:06]} Bd7 {[%emt 0:00:09]} 9. Qxc4 {[%emt 0:00:09]} Bc6 {[%emt 0:00:10]} 10. Bg5 {[%emt 0:00:22]} Bd5 {[%emt 0:00:35]} 11. Qc2 {[%emt 0:01:01]} Nbd7 {[%emt 0:31:48]} 12. Nc3 {[%emt 0:01:14]} Bc6 {[%emt 0:00:42]} 13. e4 {[%emt 0:02:29]} h6 {[%emt 0:01:13]} 14. Bxf6 {[%emt 0:09:58]} Nxf6 {[%emt 0:00:43]} 15. Rad1 {[%emt 0:00:47]} b6 {[%emt 0:02:35]} 16. d5 {[%emt 0:06:18]} exd5 {[%emt 0:03:03]} 17. e5 {[%emt 0:01:06]} Nd7 {[%emt 0:03:34]} 18. Nd4 {[%emt 0:07:19]} Bb7 {[%emt 0:05:06]} 19. Nxd5 {[%emt 0:00:08]} Bc5 {[%emt 0:37:01]} 20. Nf6+ {[%emt 0:08:01]} gxf6 {[%emt 0:01:05]} 21. Bxb7 {[%emt 0:00:17]} fxe5 {[%emt 0:04:50]} 22. Nf5 {[%emt 0:02:30]} Ra7 {[%emt 0:04:50]} 23. Bc6 {[%emt 0:00:44]} Bd6 {[%emt 0:00:37]} 24. Qd2 {[%emt 0:03:48]} f6 {[%emt 0:07:46]} 25. Bd5+ {[%emt 0:00:47]} Rf7 {[%emt 0:00:49]} 26. Qxh6 {[%emt 0:00:54]} Qf8 {[%emt 0:00:52]} 27. Qg6+ {[%emt 0:00:14]} Kh8 {[%emt 0:00:21]} 28. Bxf7 {[%emt 0:00:05]} Ra8 {[%emt 0:01:13]} 29. Qh5+ {[%emt 0:00:07]} Qh6 {[%emt 0:00:21]} 30. Qxh6# {[%emt 0:00:44]} 1-0

[Event "95th Caplin Hastings Congress"]
[Site "Hastings"]
[Date "2019.12.31"]
[Round "4.39"]
[White "Barton, R Alan"]
[Black "Makkar, Rajat"]
[Result "0-1"]
[ECO "A09"]
[WhiteElo "1945"]
[BlackElo "2137"]
[Annotator "ChessBase"]
[PlyCount "88"]
[EventDate "2019.12.28"]
[EventType "swiss"]
[EventCountry "ENG"]
[SourceTitle "playchess.com"]
[Source "ChessBase"]
[SourceQuality "1"]
[TimeControl "40/6600+30:3000+30"]

1. Nf3 {[%emt 0:09:35]} Nf6 {[%emt 0:09:44]} 2. c4 {[%emt 0:00:34]} c5 {[%emt 0:01:17]} 3. g3 {[%emt 0:03:35]} d5 {[%emt 0:00:19]} 4. Bg2 {[%emt 0:01:22]} d4 {[%emt 0:02:00]} 5. Ne5 {[%emt 0:02:29]} Qc7 {[%emt 0:02:38]} 6. Qa4+ {[%emt 0:00:03]} Nbd7 {[%emt 0:02:20]} 7. Nd3 {[%emt 0:03:22]} e5 {[%emt 0:04:30]} 8. O-O {[%emt 0:04:00]} Bd6 {[%emt 0:03:30]} 9. Na3 {[%emt 0:00:52]} a6 {[%emt 0:00:34]} 10. b4 {[%emt 0:03:01]} O-O {[%emt 0:02:58]} 11. bxc5 {[%emt 0:00:56]} Nxc5 {[%emt 0:01:24]} 12. Nxc5 {[%emt 0:01:57]} Bxc5 {[%emt 0:00:50]} 13. Rb1 {[%emt 0:05:24]} Bd7 {[%emt 0:02:33]} 14. Qb3 {[%emt 0:02:39]} Bc6 {[%emt 0:03:44]} 15. d3 {[%emt 0:03:44]} Rab8 {[%emt 0:08:05]} 16. Bd2 {[%emt 0:10:39]} Rfe8 {[%emt 0:03:42]} 17. Bb4 {[%emt 0:01:38]} Bxg2 {[%emt 0:06:37]} 18. Kxg2 {[%emt 0:00:07]} Qc6+ {[%emt 0:00:15]} 19. Kg1 {[%emt 0:02:17]} Nd7 {[%emt 0:00:41]} 20. Nc2 {[%emt 0:13:12]} h5 {[%emt 0:02:47]} 21. e4 {[%emt 0:08:00]} Qg6 {[%emt 0:03:42]} 22. Ne1 {[%emt 0:08:33]} b5 {[%emt 0:05:02]} 23. Ng2 {[%emt 0:02:05]} Rec8 {[%emt 0:01:42]} 24. Nh4 {[%emt 0:11:30]} Qf6 {[%emt 0:08:11]} 25. Qa3 {[%emt 0:03:36]} bxc4 {[%emt 0:01:52]} 26. Bxc5 {[%emt 0:01:11]} Rxb1 {[%emt 0:00:36]} 27. Rxb1 {[%emt 0:00:03]} Nxc5 {[%emt 0:00:46]} 28. Nf5 {[%emt 0:03:49]} g6 {[%emt 0:01:34]} 29. Rb6 {[%emt 0:01:20]} Qxb6 {[%emt 0:00:24]} 30. Ne7+ {[%emt 0:00:04]} Kh7 {[%emt 0:00:22]} 31. Nxc8 {[%emt 0:00:04]} Qc7 {[%emt 0:00:11]} 32. f4 {[%emt 0:02:09]} exf4 {[%emt 0:00:56]} 33. gxf4 {[%emt 0:00:19]} c3 {[%emt 0:00:48]} 34. f5 {[%emt 0:04:30]} Qxc8 {[%emt 0:00:38]} 35. fxg6+ {[%emt 0:01:36]} fxg6 {[%emt 0:00:47]} 36. Qb4 {[%emt 0:01:34]} c2 {[%emt 0:01:28]} 37. Qc4 {[%emt 0:01:01]} Qg4+ {[%emt 0:00:21]} 38. Kh1 {[%emt 0:01:29]} Qd1+ {[%emt 0:00:41]} 39. Kg2 {[%emt 0:00:04]} Qd2+ {[%emt 0:00:09]} 40. Kf3 {[%emt 0:04:19]} Qe3+ {[%emt 0:00:21]} 41. Kg2 {[%emt 0:50:27]} Qg5+ {[%emt 0:50:09]} 42. Kf3 {[%emt 0:00:00]} Qg4+ {[%emt 0:00:00]} 43. Kf2 {[%emt 0:00:00]} Qf4+ {[%emt 0:00:00]} 44. Kg2 {[%emt 0:00:00]} c1=Q {[%emt 0:00:00]} 0-1

[Event "95th Caplin Hastings Congress"]
[Site "Hastings"]
[Date "2019.12.31"]
[Round "4.40"]
[White "Garnett, John S"]
[Black "Unnikrishnan, Midhun P"]
[Result "0-1"]
[ECO "D00"]
[WhiteElo "1865"]
[BlackElo "2135"]
[Annotator "ChessBase"]
[PlyCount "46"]
[EventDate "2019.12.28"]
[EventType "swiss"]
[EventCountry "ENG"]
[SourceTitle "playchess.com"]
[Source "ChessBase"]
[SourceQuality "1"]
[TimeControl "40/6600+30:3000+30"]

1. d4 {[%emt 0:09:32]} Nf6 {[%emt 0:09:35]} 2. Bg5 {[%emt 0:00:07]} d5 {[%emt 0:00:13]} 3. e3 {[%emt 0:00:17]} c5 {[%emt 0:00:27]} 4. Bxf6 {[%emt 0:00:30]} gxf6 {[%emt 0:00:08]} 5. c4 {[%emt 0:00:27]} dxc4 {[%emt 0:00:34]} 6. Bxc4 {[%emt 0:00:25]} cxd4 {[%emt 0:00:12]} 7. Nc3 {[%emt 0:01:01]} Nc6 {[%emt 0:00:33]} 8. Qh5 {[%emt 0:00:33]} e6 {[%emt 0:00:13]} 9. O-O-O {[%emt 0:00:48]} Qa5 {[%emt 0:00:21]} 10. Qxa5 {[%emt 0:00:46]} Nxa5 {[%emt 0:00:06]} 11. Bb5+ {[%emt 0:00:29]} Ke7 {[%emt 0:00:32]} 12. Rxd4 {[%emt 0:01:44]} a6 {[%emt 0:02:12]} 13. Ba4 {[%emt 0:03:16]} b5 {[%emt 0:03:15]} 14. Bc2 {[%emt 0:01:06]} f5 {[%emt 0:04:11]} 15. Nge2 {[%emt 0:01:33]} Bg7 {[%emt 0:01:03]} 16. Rdd1 {[%emt 0:05:19]} Bb7 {[%emt 0:01:20]} 17. Rhg1 {[%emt 0:06:22]} h5 {[%emt 0:07:40]} 18. h4 {[%emt 0:02:27]} Rac8 {[%emt 0:02:09]} 19. g3 {[%emt 0:02:39]} b4 {[%emt 0:01:33]} 20. Na4 {[%emt 0:06:52]} Be4 {[%emt 0:00:10]} 21. Rd2 {[%emt 0:01:50]} b3 {[%emt 0:00:09]} 22. Nec3 {[%emt 0:03:40]} bxa2 {[%emt 0:02:57]} 23. Nxa2 {[%emt 0:02:17]} Nb3+ {[%emt 0:00:10]} 0-1

[Event "95th Caplin Hastings Congress"]
[Site "Hastings"]
[Date "2019.12.31"]
[Round "4.41"]
[White "Patrick, Chaski"]
[Black "Kumar, Sanjit S"]
[Result "1-0"]
[ECO "C92"]
[WhiteElo "2131"]
[BlackElo "1501"]
[Annotator "ChessBase"]
[PlyCount "131"]
[EventDate "2019.12.28"]
[EventType "swiss"]
[EventCountry "ENG"]
[SourceTitle "playchess.com"]
[Source "ChessBase"]
[SourceQuality "1"]
[TimeControl "40/6600+30:3000+30"]

1. e4 {[%emt 0:09:34]} e5 {[%emt 0:11:44]} 2. Nf3 {[%emt 0:00:06]} Nc6 {[%emt 0:00:15]} 3. Bb5 {[%emt 0:00:05]} a6 {[%emt 0:00:14]} 4. Ba4 {[%emt 0:00:06]} Nf6 {[%emt 0:00:19]} 5. O-O {[%emt 0:00:06]} Be7 {[%emt 0:00:11]} 6. Re1 {[%emt 0:00:06]} b5 {[%emt 0:00:13]} 7. Bb3 {[%emt 0:00:04]} d6 {[%emt 0:00:30]} 8. c3 {[%emt 0:00:06]} O-O {[%emt 0:00:21]} 9. h3 {[%emt 0:00:03]} Na5 {[%emt 0:00:26]} 10. Bc2 {[%emt 0:00:05]} c5 {[%emt 0:00:19]} 11. d3 {[%emt 0:00:06]} Bb7 {[%emt 0:05:05]} 12. Nbd2 {[%emt 0:00:30]} Re8 {[%emt 0:02:42]} 13. Nf1 {[%emt 0:00:07]} Bf8 {[%emt 0:00:30]} 14. Ng3 {[%emt 0:00:30]} g6 {[%emt 0:00:31]} 15. Bd2 {[%emt 0:03:51]} Bg7 {[%emt 0:03:17]} 16. Qc1 {[%emt 0:00:44]} Rc8 {[%emt 0:04:08]} 17. Bh6 {[%emt 0:00:36]} Bh8 {[%emt 0:00:17]} 18. Bg5 {[%emt 0:09:11]} Qb6 {[%emt 0:04:59]} 19. Nh4 {[%emt 0:06:35]} b4 {[%emt 0:04:30]} 20. Ba4 {[%emt 0:03:06]} Bc6 {[%emt 0:02:53]} 21. Bxc6 {[%emt 0:00:06]} Rxc6 {[%emt 0:00:10]} 22. Nhf5 {[%emt 0:00:41]} c4 {[%emt 0:08:27]} 23. d4 {[%emt 0:02:45]} exd4 {[%emt 0:03:51]} 24. Nxd4 {[%emt 0:01:01]} Rcc8 {[%emt 0:01:10]} 25. Qf4 {[%emt 0:01:44]} d5 {[%emt 0:06:29]} 26. e5 {[%emt 0:01:58]} Ne4 {[%emt 0:04:27]} 27. Nxe4 {[%emt 0:00:30]} dxe4 {[%emt 0:00:56]} 28. Rxe4 {[%emt 0:01:30]} Nc6 {[%emt 0:01:14]} 29. Bf6 {[%emt 0:05:58]} Nxd4 {[%emt 0:00:28]} 30. Bxh8 {[%emt 0:00:11]} Ne2+ {[%emt 0:00:28]} 31. Rxe2 {[%emt 0:00:09]} Kxh8 {[%emt 0:00:04]} 32. Qxf7 {[%emt 0:00:36]} bxc3 {[%emt 0:00:19]} 33. bxc3 {[%emt 0:00:07]} Qe6 {[%emt 0:00:36]} 34. Qxe6 {[%emt 0:00:55]} Rxe6 {[%emt 0:00:06]} 35. Rd1 {[%emt 0:00:36]} Rc5 {[%emt 0:00:37]} 36. f4 {[%emt 0:00:18]} g5 {[%emt 0:00:07]} 37. g3 {[%emt 0:00:15]} h5 {[%emt 0:00:26]} 38. h4 {[%emt 0:01:00]} gxf4 {[%emt 0:01:15]} 39. gxf4 {[%emt 0:00:07]} Rg6+ {[%emt 0:00:07]} 40. Rg2 {[%emt 0:00:55]} Kh7 {[%emt 0:00:52]} 41. Kf2 {[%emt 0:51:23]} Ra5 {[%emt 0:50:42]} 42. Rxg6 {[%emt 0:00:28]} Rxa2+ {[%emt 0:00:15]} 43. Kf3 {[%emt 0:00:06]} Kxg6 {[%emt 0:00:05]} 44. Rd6+ {[%emt 0:00:21]} Kg7 {[%emt 0:00:46]} 45. Rc6 {[%emt 0:00:20]} Rd2 {[%emt 0:00:58]} 46. Rxc4 {[%emt 0:00:17]} Rd3+ {[%emt 0:00:06]} 47. Ke4 {[%emt 0:00:10]} Rh3 {[%emt 0:00:04]} 48. Rc7+ {[%emt 0:00:30]} Kf8 {[%emt 0:00:07]} 49. c4 {[%emt 0:01:25]} Rxh4 {[%emt 0:00:17]} 50. Ra7 {[%emt 0:00:15]} Rh1 {[%emt 0:00:12]} 51. Rxa6 {[%emt 0:00:07]} Rc1 {[%emt 0:00:06]} 52. Rc6 {[%emt 0:00:31]} h4 {[%emt 0:00:08]} 53. Rh6 {[%emt 0:02:10]} Rxc4+ {[%emt 0:00:07]} 54. Kf5 {[%emt 0:00:06]} Rc7 {[%emt 0:00:41]} 55. Rxh4 {[%emt 0:00:19]} Rg7 {[%emt 0:00:13]} 56. Rh8+ {[%emt 0:00:23]} Ke7 {[%emt 0:00:08]} 57. Ra8 {[%emt 0:00:07]} Rg1 {[%emt 0:00:42]} 58. Ra7+ {[%emt 0:00:05]} Ke8 {[%emt 0:00:10]} 59. Kf6 {[%emt 0:00:35]} Re1 {[%emt 0:00:20]} 60. e6 {[%emt 0:00:00]} Kd8 {[%emt 0:00:05]} 61. e7+ {[%emt 0:00:25]} Ke8 {[%emt 0:00:08]} 62. Ra8+ {[%emt 0:00:07]} Kd7 {[%emt 0:00:05]} 63. Rd8+ {[%emt 0:00:05]} Kc7 {[%emt 0:00:04]} 64. e8=Q {[%emt 0:00:06]} Rxe8 {[%emt 0:00:07]} 65. Rxe8 {[%emt 0:00:03]} Kd7 {[%emt 0:00:11]} 66. Kf7 {[%emt 0:00:06]} 1-0

[Event "95th Caplin Hastings Congress"]
[Site "Hastings"]
[Date "2019.12.31"]
[Round "4.42"]
[White "Butt, Laurence"]
[Black "Brown, Thomas"]
[Result "0-1"]
[ECO "A45"]
[WhiteElo "1694"]
[BlackElo "2116"]
[Annotator "ChessBase"]
[PlyCount "94"]
[EventDate "2019.12.28"]
[EventType "swiss"]
[EventCountry "ENG"]
[SourceTitle "playchess.com"]
[Source "ChessBase"]
[SourceQuality "1"]
[TimeControl "40/6600+30:3000+30"]

1. d4 {[%emt 0:13:22]} Nf6 {[%emt 0:09:48]} 2. e3 {[%emt 0:00:03]} g6 {[%emt 0:00:20]} 3. f4 {[%emt 0:00:19]} Bg7 {[%emt 0:00:07]} 4. Nf3 {[%emt 0:00:06]} c5 {[%emt 0:00:27]} 5. Be2 {[%emt 0:00:27]} b6 {[%emt 0:00:40]} 6. O-O {[%emt 0:00:15]} Bb7 {[%emt 0:00:25]} 7. c4 {[%emt 0:00:22]} cxd4 {[%emt 0:02:56]} 8. exd4 {[%emt 0:00:16]} O-O {[%emt 0:01:44]} 9. Nc3 {[%emt 0:00:04]} d5 {[%emt 0:01:47]} 10. cxd5 {[%emt 0:04:52]} Nxd5 {[%emt 0:00:22]} 11. h4 {[%emt 0:06:40]} Nd7 {[%emt 0:14:56]} 12. h5 {[%emt 0:01:28]} Rc8 {[%emt 0:02:58]} 13. hxg6 {[%emt 0:02:40]} hxg6 {[%emt 0:02:28]} 14. Nxd5 {[%emt 0:06:00]} Bxd5 {[%emt 0:00:05]} 15. Ne5 {[%emt 0:00:24]} Nxe5 {[%emt 0:01:55]} 16. fxe5 {[%emt 0:01:36]} Bc4 {[%emt 0:05:40]} 17. Be3 {[%emt 0:01:43]} Bxe2 {[%emt 0:06:41]} 18. Qxe2 {[%emt 0:00:01]} Qd5 {[%emt 0:00:16]} 19. Qf3 {[%emt 0:09:48]} Qxf3 {[%emt 0:13:12]} 20. gxf3 {[%emt 0:00:07]} f6 {[%emt 0:04:54]} 21. f4 {[%emt 0:00:29]} Kf7 {[%emt 0:02:47]} 22. Rad1 {[%emt 0:05:03]} Rc2 {[%emt 0:02:47]} 23. Rf2 {[%emt 0:07:53]} Rxf2 {[%emt 0:00:18]} 24. Kxf2 {[%emt 0:03:16]} fxe5 {[%emt 0:00:19]} 25. fxe5 {[%emt 0:00:28]} Ke6+ {[%emt 0:02:33]} 26. Ke2 {[%emt 0:00:20]} Rh8 {[%emt 0:05:31]} 27. Rc1 {[%emt 0:01:50]} Rh2+ {[%emt 0:04:21]} 28. Bf2 {[%emt 0:01:06]} Bh6 {[%emt 0:00:23]} 29. Rc6+ {[%emt 0:00:40]} Kf5 {[%emt 0:00:08]} 30. Kf1 {[%emt 0:06:22]} Rh1+ {[%emt 0:02:05]} 31. Kg2 {[%emt 0:00:59]} Rb1 {[%emt 0:04:10]} 32. Rc2 {[%emt 0:04:48]} Rc1 {[%emt 0:01:55]} 33. Re2 {[%emt 0:00:46]} Rd1 {[%emt 0:00:19]} 34. Bh4 {[%emt 0:07:03]} Rxd4 {[%emt 0:08:11]} 35. Bxe7 {[%emt 0:00:10]} Rd2 {[%emt 0:00:56]} 36. Rxd2 {[%emt 0:03:44]} Bxd2 {[%emt 0:00:06]} 37. Kf3 {[%emt 0:02:57]} Kxe5 {[%emt 0:02:16]} 38. Ke2 {[%emt 0:02:55]} Bc1 {[%emt 0:02:26]} 39. b3 {[%emt 0:00:36]} Ke4 {[%emt 0:00:18]} 40. a4 {[%emt 0:02:12]} Be3 {[%emt 0:02:54]} 41. Bd6 {[%emt 0:50:44]} g5 {[%emt 0:55:07]} 42. Bg3 {[%emt 0:01:58]} g4 {[%emt 0:01:41]} 43. b4 {[%emt 0:00:30]} Bf4 {[%emt 0:00:00]} 44. Bf2 {[%emt 0:00:00]} g3 {[%emt 0:00:00]} 45. Bg1 {[%emt 0:00:00]} Be5 {[%emt 0:00:00]} 46. a5 {[%emt 0:00:00]} Bd4 {[%emt 0:00:00]} 47. axb6 {[%emt 0:00:00]} axb6 {[%emt 0:00:00]} 0-1

[Event "95th Caplin Hastings Congress"]
[Site "Hastings"]
[Date "2019.12.31"]
[Round "4.43"]
[White "Mineev, Sergey I."]
[Black "White, Stuart A"]
[Result "1/2-1/2"]
[ECO "E39"]
[WhiteElo "1588"]
[BlackElo "2106"]
[Annotator "ChessBase"]
[PlyCount "32"]
[EventDate "2019.12.28"]
[EventType "swiss"]
[EventCountry "ENG"]
[SourceTitle "playchess.com"]
[Source "ChessBase"]
[SourceQuality "1"]
[TimeControl "40/6600+30:3000+30"]

1. d4 {[%emt 0:09:32]} Nf6 {[%emt 0:09:32]} 2. c4 {[%emt 0:00:09]} e6 {[%emt 0:00:04]} 3. Nc3 {[%emt 0:00:05]} Bb4 {[%emt 0:00:10]} 4. Qc2 {[%emt 0:00:11]} O-O {[%emt 0:00:18]} 5. Bg5 {[%emt 0:00:27]} c5 {[%emt 0:00:25]} 6. dxc5 {[%emt 0:00:07]} Na6 {[%emt 0:00:48]} 7. a3 {[%emt 0:02:13]} Bxc3+ {[%emt 0:00:37]} 8. Qxc3 {[%emt 0:00:08]} Nxc5 {[%emt 0:00:59]} 9. Bxf6 {[%emt 0:00:49]} Qxf6 {[%emt 0:00:53]} 10. Qxf6 {[%emt 0:00:13]} gxf6 {[%emt 0:00:03]} 11. g3 {[%emt 0:06:56]} a5 {[%emt 0:05:32]} 12. Bg2 {[%emt 0:01:44]} a4 {[%emt 0:09:13]} 13. Nf3 {[%emt 0:03:50]} Ra5 {[%emt 0:22:15]} 14. Nd4 {[%emt 0:12:28]} Rd8 {[%emt 0:05:49]} 15. O-O {[%emt 0:04:04]} Kf8 {[%emt 0:02:41]} 16. Rab1 {[%emt 0:04:40]} d6 {[%emt 0:12:33]} 1/2-1/2

[Event "95th Caplin Hastings Congress"]
[Site "Hastings"]
[Date "2019.12.31"]
[Round "4.44"]
[White "Boino, Claudio"]
[Black "Flynn, David"]
[Result "1/2-1/2"]
[ECO "D85"]
[WhiteElo "2146"]
[BlackElo "1853"]
[Annotator "ChessBase"]
[PlyCount "76"]
[EventDate "2019.12.28"]
[EventType "swiss"]
[EventCountry "ENG"]
[SourceTitle "playchess.com"]
[Source "ChessBase"]
[SourceQuality "1"]
[TimeControl "40/6600+30:3000+30"]

1. d4 {[%emt 0:10:00]} Nf6 {[%emt 0:26:24]} 2. Nf3 {[%emt 0:00:00]} g6 {[%emt 0:00:15]} 3. c4 {[%emt 0:00:00]} Bg7 {[%emt 0:00:05]} 4. Nc3 {[%emt 0:00:00]} d5 {[%emt 0:00:05]} 5. cxd5 {[%emt 0:00:00]} Nxd5 {[%emt 0:00:10]} 6. e4 {[%emt 0:00:04]} Nxc3 {[%emt 0:00:07]} 7. bxc3 {[%emt 0:00:04]} c5 {[%emt 0:00:23]} 8. Be3 {[%emt 0:00:09]} Qa5 {[%emt 0:01:23]} 9. Qd2 {[%emt 0:00:07]} Nc6 {[%emt 0:00:33]} 10. Rb1 {[%emt 0:00:54]} cxd4 {[%emt 0:02:29]} 11. cxd4 {[%emt 0:00:09]} Qxd2+ {[%emt 0:00:30]} 12. Kxd2 {[%emt 0:00:10]} O-O {[%emt 0:00:25]} 13. Bd3 {[%emt 0:00:26]} e6 {[%emt 0:07:30]} 14. Rhc1 {[%emt 0:00:09]} Rd8 {[%emt 0:04:49]} 15. Rc4 {[%emt 0:00:10]} Na5 {[%emt 0:06:18]} 16. Rc5 {[%emt 0:16:51]} Nc6 {[%emt 0:02:29]} 17. Rc4 {[%emt 0:02:49]} Na5 {[%emt 0:00:04]} 18. Rc7 {[%emt 0:05:02]} Rd7 {[%emt 0:24:12]} 19. Rc2 {[%emt 0:06:19]} b6 {[%emt 0:10:33]} 20. Rbc1 {[%emt 0:07:04]} Bb7 {[%emt 0:00:13]} 21. Ke2 {[%emt 0:00:31]} Rdd8 {[%emt 0:04:38]} 22. Rc7 {[%emt 0:17:25]} Rac8 {[%emt 0:00:16]} 23. Bd2 {[%emt 0:05:39]} Rxc7 {[%emt 0:00:29]} 24. Rxc7 {[%emt 0:00:09]} Rc8 {[%emt 0:00:22]} 25. Rd7 {[%emt 0:01:05]} f5 {[%emt 0:09:06]} 26. e5 {[%emt 0:11:54]} Bd5 {[%emt 0:09:36]} 27. Bxa5 {[%emt 0:08:07]} bxa5 {[%emt 0:00:06]} 28. Rxa7 {[%emt 0:00:07]} Bxa2 {[%emt 0:00:13]} 29. Rxa5 {[%emt 0:00:10]} Bd5 {[%emt 0:00:30]} 30. Ne1 {[%emt 0:03:27]} Bf8 {[%emt 0:01:24]} 31. Rb5 {[%emt 0:04:54]} Ra8 {[%emt 0:00:37]} 32. Rb2 {[%emt 0:01:21]} Ra4 {[%emt 0:00:42]} 33. Ke3 {[%emt 0:02:02]} f4+ {[%emt 0:01:33]} 34. Kxf4 {[%emt 0:00:46]} Bh6+ {[%emt 0:00:43]} 35. Kg3 {[%emt 0:00:51]} Rxd4 {[%emt 0:00:11]} 36. Be2 {[%emt 0:03:35]} Bf4+ {[%emt 0:01:40]} 37. Kh3 {[%emt 0:00:05]} Bxe5 {[%emt 0:00:26]} 38. Nf3 {[%emt 0:00:37]} Bxf3 {[%emt 0:01:38]} 1/2-1/2

[Event "95th Caplin Hastings Congress"]
[Site "Hastings"]
[Date "2019.12.31"]
[Round "4.45"]
[White "Wilson, Matthew R"]
[Black "Ortiz Sanchez, Luis"]
[Result "1-0"]
[ECO "B31"]
[WhiteElo "1837"]
[BlackElo "1947"]
[Annotator "NA"]
[PlyCount "45"]
[EventDate "2019.12.28"]
[EventType "swiss"]
[EventCountry "ENG"]
[SourceTitle "playchess.com"]
[Source "ChessBase"]
[SourceQuality "1"]
[TimeControl "40/6600+30:3000+30"]

1. e4 {[%emt 0:09:54]} c5 {[%emt 0:09:56]} 2. Nf3 {[%emt 0:00:04]} Nc6 {[%emt 0:00:07]} 3. Bb5 {[%emt 0:00:03]} e6 {[%emt 0:02:45]} 4. O-O {[%emt 0:00:17]} Nge7 {[%emt 0:00:13]} 5. Re1 {[%emt 0:00:21]} g6 {[%emt 0:00:41]} 6. c3 {[%emt 0:05:53]} Bg7 {[%emt 0:03:58]} 7. d4 {[%emt 0:00:27]} cxd4 {[%emt 0:00:37]} 8. cxd4 {[%emt 0:00:49]} Qb6 {[%emt 0:01:09] B31: Sicilian: 2...Nc6 3 Bb5 g6} 9. Bxc6 {[%emt 0:01:20]} (9. Na3 d5 10. exd5 Nxd5 11. Nc4 Qc7 12. Bg5 O-O 13. Rc1 Nce7 14. Ba4 a6 15. Bb3 b5 16. Nce5 {½-½ (42) Nanu,C (2507)-Grecescu,G (2383) Eforie Nord 2007}) 9... dxc6 {[%emt 0:00:44]} 10. Nc3 {[%emt 0:02:05]} O-O {[%emt 0:00:47]} 11. b3 $146 {[%emt 0:05:28]} ({Predecessor:} 11. Rb1 Rd8 12. Be3 Qc7 13. Qb3 b6 14. Rbc1 Bb7 15. Bg5 h6 16. Bh4 {0-1 (28) Peregi,Z (1926)-Jaro,B (1783) Hungary 2016}) 11... Qa6 {[%emt 0:18:21]} 12. e5 {[%emt 0:21:27]} c5 {[%emt 0:11:16]} 13. Ne4 {[%emt 0:12:46]} cxd4 {[%emt 0:01:24]} 14. Bg5 {[%emt 0:02:38]} Nd5 {[%emt 0:01:17]} 15. Nf6+ {[%emt 0:18:20]} Kh8 {[%emt 0:02:29]} 16. Qd2 {[%emt 0:05:47]} d3 {[%emt 0:18:15]} 17. Re4 {[%emt 0:05:19]} Qc6 {[%emt 0:06:42]} 18. Rh4 {[%emt 0:06:07]} h5 {[%emt 0:00:39]} 19. Rc1 $18 {[%emt 0:02:15]} Qb5 {[%emt 0:04:12]} 20. a4 {[%emt 0:06:52]} Qxb3 {[%emt 0:00:54]} 21. g4 {[%emt 0:00:12]} Qb4 {[%emt 0:00:28]} 22. gxh5 {[%emt 0:02:41]} Nxf6 {[%emt 0:05:18]} 23. Qxb4 {[%emt 0:01:24]} 1-0